bitfinex/quotes_ETHUSD_20250804
["timestamp","ask_amount","ask_price","bid_price","bid_amount"]
[1754291451373,1e-08,3547.2,3547.1,18.62954102]
[1754291451578,1e-08,3547.2,3547.1,11.62954102]
[1754291452645,1e-08,3547.6,3547.5,5.81888653]
[1754291452866,1e-08,3547.6,3547.5,11.55958581]
[1754291453085,1e-08,3547.6,3547.5,11.70038581]
[1754291454387,1e-08,3547.6,3547.5,11.91157263]
[1754291457682,1e-08,3547.6,3547.5,12.40817263]
[1754291457880,1e-08,3547.6,3547.5,13.01045291]
[1754291460707,1e-08,3547.6,3547.5,12.51385291]
[1754291461105,1e-08,3547.6,3547.5,13.01045291]
[1754291462672,1e-08,3548.0,3547.9,5.81856873]
[1754291462869,1e-08,3548.0,3547.9,11.2752917]
[1754291463075,1e-08,3548.0,3547.9,11.4160917]
[1754291463276,1e-08,3548.0,3547.9,7.1230917]
[1754291463495,1.19380001,3548.0,3547.9,11.4160917]
[1754291465190,1.19380001,3548.0,3547.9,7.1230917]
[1754291465698,1.19380001,3548.0,3547.9,5.95936873]
[1754291465901,1.29380001,3548.0,3547.9,5.81856873]
[1754291468814,1.19380001,3548.0,3547.9,5.81856873]
[1754291469113,1.29380001,3548.0,3547.9,5.81856873]
[1754291469416,1.29380001,3548.0,3547.9,5.95936873]
[1754291469622,1.29380001,3548.0,3547.9,6.8371717]
[1754291475301,1.19380001,3548.0,3547.9,6.8371717]
[1754291476118,1.29380001,3548.0,3547.9,6.8371717]
[1754291476329,1e-08,3548.0,3547.9,6.8371717]
[1754291479827,1.19380001,3548.0,3547.9,6.8371717]
[1754291481432,1e-08,3548.0,3547.9,6.8371717]
[1754291482124,1e-08,3548.0,3547.9,6.6963717]
[1754291482325,1e-08,3548.0,3547.9,11.6056717]
[1754291484637,1e-08,3548.0,3547.9,11.6076717]
[1754291484930,0.7294,3548.5,3548.0,6.99999999]
[1754291485140,0.7294,3548.5,3548.1,12.97865692]
[1754291485308,0.1,3548.7,3548.6,2.81801273]
[1754291485512,0.1,3548.7,3548.6,5.95881273]
[1754291485904,1.2938,3548.7,3548.6,5.95881273]
[1754291487808,1.2938,3548.7,3548.6,12.81801273]
[1754291488102,1.2938,3548.7,3548.6,2.81801273]
[1754291490302,0.1,3548.7,3548.6,2.81801273]
[1754291490515,1.1573,3548.7,3548.6,2.81801273]
[1754291490719,1.2573,3548.7,3548.6,4.12480449]
[1754291491120,0.1,3548.7,3548.6,4.12480449]
[1754291491333,4.291,3549.1,3549.0,2.81769512]
[1754291491944,5.4483,3549.1,3549.0,2.81769512]
[1754291492337,1.2573,3549.1,3549.0,2.81769512]
[1754291492646,1.1573,3549.1,3549.0,2.81769512]
[1754291492845,0.1,3549.4,3549.3,2.81745696]
[1754291493145,0.1,3549.4,3549.3,2.95825696]
[1754291493347,0.6965,3549.6,3549.5,2.81729821]
[1754291493539,1.1573,3549.6,3549.5,2.81729821]
[1754291493848,1.1573,3549.6,3549.5,2.95809821]
[1754291494850,0.1,3549.7,3549.5,1.14745552]
[1754291495052,0.1,3549.7,3549.6,5.95801884]
[1754291496019,0.6965,3549.8,3549.7,5.81713947]
[1754291496245,0.7965,3549.8,3549.7,5.81713947]
[1754291496452,1.2573,3549.8,3549.7,5.81713947]
[1754291499555,0.1,3549.8,3549.7,5.81713947]
[1754291501566,1.2573,3549.8,3549.7,5.81713947]
[1754291502065,0.1,3549.8,3549.7,5.81713947]
[1754291502227,0.1,3550.3,3550.2,2.81674271]
[1754291502427,4.39,3550.6,3550.5,2.81650471]
[1754291502640,4.39,3550.6,3550.4,2.81655582]
[1754291503027,1.1573,3550.5,3550.4,2.81655582]
[1754291503427,4.39,3550.6,3550.5,2.81650471]
[1754291503627,4.39,3550.6,3550.4,2.8165752]
[1754291503827,4.39,3550.6,3550.4,2.81657109]
[1754291504065,1.1573,3550.5,3550.4,2.81657109]
[1754291504560,1.1573,3551.0,3550.4,0.57741009]
[1754291504865,0.1408,3551.1,3550.8,2.81626033]
[1754291505029,4.4298,3551.1,3550.8,2.81626033]
[1754291505229,4.4298,3551.1,3551.0,2.81610813]
[1754291505430,0.11099443,3551.9,3551.2,2.81594156]
[1754291505629,2.81556624,3551.7,3551.0,2.81608193]
[1754291505945,5.34242781,3551.8,3550.6,0.1408]
[1754291505946,0.1408,3551.2,3550.6,0.1408]
[1754291506247,4.88162781,3551.8,3550.2,3.0]
[1754291506248,0.1408,3550.7,3550.2,0.1408]
[1754291506448,1.1573,3550.6,3550.5,2.81648726]
[1754291507447,1.1573,3550.6,3550.2,0.1408]
[1754291507666,1.1573,3550.5,3550.4,2.81658404]
[1754291507974,1.1573,3550.5,3549.9,3.0]
[1754291507975,0.1408,3550.4,3550.1,3.0]
[1754291508179,0.1408,3550.4,3550.3,2.81666122]
[1754291508377,1.2981,3550.4,3550.2,2.81671764]
[1754291508548,1.1573,3550.3,3550.2,2.81671764]
[1754291509232,1.1573,3550.3,3550.0,2.81689058]
[1754291509233,4.289,3550.7,3550.1,0.0135747]
[1754291509460,0.6965,3550.5,3550.4,2.81658404]
[1754291509663,1.1573,3550.5,3550.4,2.81658404]
[1754291510962,5.4463,3550.5,3550.4,2.95738404]
[1754291511672,4.289,3550.5,3550.4,2.95738404]
[1754291512469,5.4463,3550.5,3550.4,2.95738404]
[1754291513043,5.4463,3550.5,3550.4,2.81658404]
[1754291514677,0.1408,3550.9,3550.4,0.1408]
[1754291514971,4.288,3550.8,3550.7,2.81634607]
[1754291515562,0.1408,3551.0,3550.8,2.81626675]
[1754291515842,0.1408,3551.2,3551.1,2.81602883]
[1754291516150,4.8896,3551.2,3551.1,2.81602883]
[1754291517376,5.4453,3551.2,3551.1,2.81602883]
[1754291518038,4.288,3551.2,3551.1,2.81602883]
[1754291518375,4.288,3551.4,3551.1,0.1408]
[1754291518544,4.4288,3551.3,3551.2,2.81594953]
[1754291518743,4.4288,3551.3,3551.1,2.81602405]
[1754291518943,1.1448,3551.2,3551.1,2.81602405]
[1754291519281,1.1448,3551.2,3551.0,2.81608179]
[1754291519482,1.1448,3551.1,3550.9,2.81616728]
[1754291519865,1.1448,3551.0,3550.9,2.81616728]
[1754291520179,4.4288,3551.3,3550.7,5.95706977]
[1754291520180,4.4288,3551.3,3550.7,5.95708899]
[1754291520356,4.73088,3551.3,3550.3,3.0]
[1754291520553,0.1408,3551.1,3550.8,2.81619882]
[1754291520877,5.4328,3551.0,3550.7,2.81631978]
[1754291521084,4.288,3551.0,3550.6,2.81637109]
[1754291521283,0.55,3550.8,3550.5,2.95728831]
[1754291521446,0.55,3550.9,3550.5,2.81648831]
[1754291521645,0.1408,3550.6,3550.4,2.81656664]
[1754291521870,5.4328,3550.5,3550.4,5.81656664]
[1754291522383,5.4328,3550.5,3549.7,0.89841898]
[1754291522384,5.99016,3550.5,3549.5,3.0262458]
[1754291522686,1.2856,3550.4,3550.2,2.81672543]
[1754291522993,1.1448,3550.3,3550.2,5.81672543]
[1754291523653,0.55,3550.2,3549.8,2.81703224]
[1754291523965,0.1408,3549.7,3549.1,2.95840871]
[1754291524169,5.4328,3549.6,3549.1,2.81760871]
[1754291524365,5.4328,3549.6,3549.2,2.81752871]
[1754291524569,1.2856,3549.5,3549.3,2.81739112]
[1754291524767,1.32081622,3549.5,3549.2,0.20743465]
[1754291524982,1.32081622,3549.5,3548.7,2.81786241]
[1754291524983,0.55,3549.1,3548.7,2.81786241]
[1754291525291,0.1408,3548.9,3548.7,2.81786241]
[1754291525577,5.4328,3548.8,3548.5,2.81801411]
[1754291525781,1.18002416,3548.7,3548.0,0.002]
[1754291525981,0.1408,3548.5,3548.4,2.81817157]
[1754291526278,0.1408,3548.5,3548.0,0.35371779]
[1754291526279,1.2856,3548.5,3548.2,2.81827897]
[1754291526479,4.288,3548.4,3548.2,2.81827897]
[1754291526674,4.288,3548.4,3548.3,2.81825099]
[1754291527489,5.4328,3548.4,3548.3,2.81825099]
[1754291528675,4.288,3548.4,3548.3,2.81825099]
[1754291529285,0.1408,3548.5,3548.4,2.81817157]
[1754291529463,4.4298,3548.5,3548.4,2.81817157]
[1754291530353,5.5746,3548.5,3548.4,2.81817157]
[1754291531586,1.1448,3549.0,3548.9,2.81777452]
[1754291531784,5.5746,3549.0,3548.9,2.81777452]
[1754291532301,1.2856,3549.0,3548.9,2.81777452]
[1754291532465,4.7483,3549.0,3548.9,2.81777452]
[1754291532666,5.4338,3549.0,3548.7,2.81787057]
[1754291532927,0.1408,3548.8,3548.7,2.81792941]
[1754291533081,0.1408,3548.8,3548.2,0.1408]
[1754291533387,5.46902416,3548.7,3548.6,2.81801273]
[1754291533566,5.4338,3548.7,3548.6,2.81801273]
[1754291534684,5.4338,3548.7,3548.2,0.1408]
[1754291534685,5.4338,3548.7,3548.2,2.81827707]
[1754291534982,0.1408,3548.5,3548.4,2.81811539]
[1754291535490,1.2856,3548.5,3548.4,2.81811539]
[1754291535651,0.1408,3548.5,3548.4,2.81811539]
[1754291536369,1.2856,3548.5,3548.4,2.81811539]
[1754291537575,0.1408,3548.5,3548.4,2.81811539]
[1754291539558,1.2856,3548.5,3548.4,2.81811539]
[1754291540190,0.1408,3548.5,3548.4,2.81811539]
[1754291540654,1.2856,3548.5,3548.3,2.81824232]
[1754291540856,4.29,3548.4,3548.3,2.81824232]
[1754291541062,5.4348,3548.4,3548.3,2.81824232]
[1754291543387,5.4348,3548.4,3548.2,2.81832801]
[1754291543586,1.2856,3548.3,3548.2,2.81832801]
[1754291544092,1.2856,3548.3,3548.2,2.81833042]
[1754291544387,1.2856,3548.3,3548.1,2.82036075]
[1754291544554,1.1448,3548.2,3548.1,0.002]
[1754291544763,1.1448,3548.2,3548.1,2.82040985]
[1754291546389,1.1448,3548.2,3548.1,0.002]
[1754291546570,1.1448,3548.2,3548.1,2.82040985]
[1754291546767,1.6948,3548.2,3548.1,0.002]
[1754291546982,2.59269772,3548.2,3548.1,0.002]
[1754291550195,5.9848,3548.2,3548.1,0.002]
[1754291552811,8.80313042,3548.2,3548.1,0.002]
[1754291553482,1.6948,3548.2,3548.1,0.002]
[1754291553797,8.80313042,3548.2,3548.1,0.002]
[1754291554098,5.9848,3548.2,3548.1,0.002]
[1754291554399,2.85691734,3548.2,3548.1,0.002]
[1754291554692,5.9583,3548.2,3548.1,0.002]
[1754291555698,8.77663042,3548.2,3548.1,0.002]
[1754291556196,5.9583,3548.2,3548.1,0.002]
[1754291556358,4.48563042,3548.2,3548.1,0.002]
[1754291556559,1.6673,3548.2,3548.1,0.002]
[1754291556803,6.85816754,3548.2,3548.1,0.002]
[1754291557297,2.56716754,3548.2,3548.1,0.002]
[1754291557471,6.85816754,3548.2,3548.1,0.002]
[1754291557896,2.56716754,3548.2,3548.1,0.002]
[1754291558124,1.6673,3548.2,3548.1,0.002]
[1754291558396,1.6673,3548.2,3548.1,2.82040985]
[1754291558397,4.291,3548.2,3548.1,2.82040985]
[1754291558566,4.291,3548.2,3548.1,3.24630985]
[1754291559087,0.658,3548.8,3548.4,2.81811316]
[1754291559297,4.291,3548.7,3548.4,2.81811316]
[1754291559478,1.6787,3548.6,3548.4,2.81811316]
[1754291559678,4.841,3548.5,3548.4,2.81811316]
[1754291559873,0.658,3549.0,3548.4,2.81811316]
[1754291560186,4.291,3548.9,3548.6,2.81794476]
[1754291560507,0.55,3548.8,3548.7,2.81793332]
[1754291560916,4.841,3548.8,3548.7,2.81793332]
[1754291561689,4.841,3548.8,3548.6,2.81801172]
[1754291562203,1.1287,3548.7,3548.4,2.8180936]
[1754291562377,5.4197,3548.6,3548.5,2.81807562]
[1754291562776,5.5605,3548.6,3548.5,2.81807562]
[1754291563291,4.4318,3548.6,3548.5,2.81807562]
[1754291564432,0.1408,3548.6,3548.5,2.81807562]
[1754291564715,4.4318,3548.6,3548.5,2.81807562]
[1754291566187,0.55,3548.5,3548.1,3.002]
[1754291566394,0.6908,3548.2,3548.1,0.002]
[1754291566587,5.01702913,3548.2,3548.1,0.002]
[1754291566807,6.1105,3548.2,3548.1,0.002]
[1754291567403,6.1105,3548.2,3548.1,2.82040985]
[1754291567404,4.9818,3548.2,3548.1,2.82040985]
[1754291568349,6.1105,3548.2,3548.1,0.002]
[1754291569858,4.4318,3548.2,3548.1,2.82040985]
[1754291570357,4.291,3548.2,3548.1,2.82040985]
[1754291570504,4.4318,3548.2,3548.1,2.82040985]
[1754291571130,4.4318,3548.2,3548.1,3.22150985]
[1754291571345,0.55,3548.7,3548.6,2.81801273]
[1754291571550,0.55,3548.7,3548.4,2.81814209]
[1754291571551,0.1408,3548.5,3548.4,2.81817157]
[1754291571928,0.1408,3548.5,3548.4,3.21927157]
[1754291572305,4.4358,3548.5,3548.4,3.21927157]
[1754291572707,4.295,3548.5,3548.4,3.21927157]
[1754291573156,4.295,3548.5,3548.4,4.11915275]
[1754291573435,4.295,3548.5,3548.4,3.71805275]
[1754291573963,4.295,3548.5,3548.4,4.11915275]
[1754291574241,0.1408,3548.8,3548.7,2.81793332]
[1754291574449,4.4348,3548.8,3548.7,2.81793332]
[1754291577201,4.4338,3548.8,3548.7,2.81793332]
[1754291577443,4.293,3548.8,3548.7,2.81793332]
[1754291578306,4.293,3548.8,3548.7,3.9288076]
[1754291578809,0.4707,3549.5,3549.4,2.81737758]
[1754291579024,5.5585,3549.5,3549.4,2.81737758]
[1754291579225,0.6908,3549.5,3549.4,2.81737758]
[1754291579431,4.9848,3549.5,3549.4,2.81737758]
[1754291579935,5.6388,3549.5,3549.4,2.81737758]
[1754291580301,4.4348,3549.5,3549.4,2.81737758]
[1754291580634,4.294,3549.5,3549.4,3.38086241]
[1754291581440,0.7948,3549.8,3549.7,2.81713947]
[1754291581641,1.2532,3549.8,3549.7,2.81713947]
[1754291581847,0.55,3549.7,3549.6,2.81714828]
[1754291582018,4.4338,3549.8,3549.7,2.81713947]
[1754291582221,4.9838,3549.8,3549.7,2.81713947]
[1754291582421,4.4338,3549.8,3549.7,2.81713947]
[1754291582627,4.293,3549.8,3549.7,2.81713947]
[1754291582944,5.5462,3549.8,3549.7,2.81713947]
[1754291583623,0.55,3549.7,3549.1,0.1408]
[1754291583823,1.1124,3549.6,3549.5,2.81729821]
[1754291584033,1.2532,3549.6,3549.5,2.81729821]
[1754291584235,1.2532,3549.6,3549.4,2.81736911]
[1754291584545,5.4054,3549.5,3549.3,2.81745032]
[1754291584843,1.1124,3549.4,3549.3,2.81744476]
[1754291585147,1.2532,3549.4,3549.3,2.81744476]
[1754291585922,1.2532,3549.4,3549.3,3.02745998]
[1754291586323,1.2532,3549.4,3549.3,0.21001522]
[1754291586647,1.2532,3549.4,3549.3,2.81745696]
[1754291588660,1.2532,3549.4,3549.2,2.81753132]
[1754291588858,5.4034,3549.3,3549.2,2.81753132]
[1754291589162,5.4034,3549.3,3549.2,0.2065668]
[1754291589466,5.4034,3549.3,3549.1,2.81758707]
[1754291589644,4.291,3549.3,3549.1,2.81758707]
[1754291589846,1.2532,3549.2,3549.1,2.81758707]
[1754291591271,1.2532,3549.2,3549.0,2.817687]
[1754291591569,1.1124,3549.1,3549.0,2.817687]
[1754291591782,5.4024,3549.1,3549.0,2.817687]
[1754291591977,5.4024,3549.1,3548.8,0.20900092]
[1754291592190,1.69762118,3549.0,3548.8,0.20900092]
[1754291592485,4.9808,3548.9,3548.5,0.02]
[1754291592686,4.84,3548.9,3548.5,2.83804052]
[1754291592837,0.1408,3548.7,3548.5,2.83804052]
[1754291593178,5.4024,3548.6,3548.5,2.83804052]
[1754291593383,5.4024,3548.6,3548.5,3.0503841]
[1754291593890,5.4024,3548.6,3548.5,0.23234358]
[1754291594187,5.9524,3548.6,3548.5,0.23234358]
[1754291597395,5.9524,3548.6,3548.5,3.05043573]
[1754291597396,4.9818,3548.6,3548.5,3.05043573]
[1754291598028,0.6908,3548.6,3548.5,3.05043573]
[1754291598216,4.9818,3548.6,3548.5,3.05043573]
[1754291598494,0.55,3548.8,3548.7,2.8178797]
[1754291598699,4.84,3548.8,3548.7,2.8178797]
[1754291599004,6.0932,3548.8,3548.7,2.8178797]
[1754291601387,6.70252,3548.8,3548.5,0.23234358]
[1754291601552,6.70252,3548.8,3548.5,3.05037271]
[1754291601553,0.6908,3548.6,3548.5,3.05037271]
[1754291601754,4.9808,3548.6,3548.5,3.05037271]
[1754291601966,6.0932,3548.6,3548.5,3.05037271]
[1754291607259,6.0932,3548.6,3548.5,3.05043573]
[1754291608699,6.0932,3548.6,3548.5,0.23234358]
[1754291609002,6.0932,3548.6,3548.5,3.05043573]
[1754291610894,6.0932,3548.6,3548.5,0.23234358]
[1754291611264,6.70252,3548.6,3548.5,0.23234358]
[1754291613379,4.9808,3548.6,3548.5,0.23234358]
[1754291613585,4.9808,3548.6,3548.5,3.05243573]
[1754291614064,5.6562,3548.6,3548.5,3.05243573]
[1754291614687,6.1144,3548.6,3548.5,3.05243573]
[1754291614882,6.1144,3548.6,3548.5,0.23434358]
[1754291615081,6.72584,3548.6,3548.5,3.05243573]
[1754291615318,6.1144,3548.6,3548.5,3.05243573]
[1754291616108,1.8244,3548.6,3548.5,3.05243573]
[1754291616272,6.1144,3548.6,3548.5,3.05243573]
[1754291616604,1.1336,3549.3,3548.5,3.05243573]
[1754291616804,4.29,3549.2,3548.5,3.3576793]
[1754291617016,4.29,3549.2,3549.1,2.81761573]
[1754291617400,4.84,3549.2,3549.1,2.81761573]
[1754291619083,5.9736,3549.2,3549.1,2.81761573]
[1754291619523,0.55,3549.1,3549.0,2.81766549]
[1754291621427,1.6836,3549.1,3548.6,2.81793737]
[1754291621724,5.4236,3549.0,3548.5,3.05242877]
[1754291622024,1.16882218,3548.9,3548.5,3.05242877]
[1754291622225,4.29,3548.8,3548.6,2.81801273]
[1754291622427,1.0082,3548.7,3548.5,0.23434358]
[1754291622633,1.6836,3548.7,3548.6,2.81798389]
[1754291622817,5.9736,3548.7,3548.6,2.81798389]
[1754291623629,6.57096,3548.7,3548.5,0.23434358]
[1754291623829,1.6836,3548.6,3548.5,0.23434358]
[1754291624342,5.81749285,3549.3,3548.6,2.81801273]
[1754291624628,0.55,3549.0,3548.5,0.23434358]
[1754291624832,0.55,3548.8,3548.7,2.8179172]
[1754291625191,1.1336,3549.2,3548.7,2.81785849]
[1754291625391,5.2982,3549.1,3548.8,2.81785357]
[1754291625599,4.29,3549.0,3548.8,2.81785357]
[1754291625929,5.4236,3549.0,3548.6,2.81795996]
[1754291626097,4.29,3549.0,3548.7,2.81791802]
[1754291626299,1.1336,3548.9,3548.7,2.81791802]
[1754291626495,4.29,3548.8,3548.7,2.81791802]
[1754291626695,5.5644,3548.8,3548.5,0.23434358]
[1754291626898,1.1336,3548.7,3548.6,2.81800613]
[1754291627326,1.2744,3548.7,3548.6,2.81800613]
[1754291627740,1.2744,3548.7,3548.5,0.23434358]
[1754291628041,5.4236,3548.6,3548.5,3.05242846]
[1754291628535,5.9736,3548.6,3548.5,0.23434358]
[1754291628945,5.9736,3548.6,3548.5,3.05243573]
[1754291629105,0.55,3548.6,3548.5,3.05243573]
[1754291629306,4.84,3548.6,3548.5,3.05243573]
[1754291631424,0.1408,3548.7,3548.6,2.81801273]
[1754291631752,1.2254,3549.3,3549.0,2.8176852]
[1754291631954,0.55,3549.1,3549.0,2.8176852]
[1754291632125,0.6908,3549.1,3549.0,2.8176852]
[1754291632330,1.8244,3549.1,3549.0,2.8176852]
[1754291632855,1.8244,3549.1,3548.9,2.81775172]
[1754291633053,1.6836,3549.1,3549.0,2.81769512]
[1754291633256,5.9736,3549.1,3549.0,2.81769512]
[1754291633461,6.1144,3549.1,3549.0,2.81769512]
[1754291635438,1.8244,3549.1,3549.0,2.81769512]
[1754291635784,6.1144,3549.1,3549.0,2.81769512]
[1754291637472,4.4308,3549.1,3549.0,2.81769512]
[1754291637649,4.29,3549.1,3549.0,2.81769512]
[1754291640170,0.1408,3549.3,3549.2,2.81753634]
[1754291640339,4.4308,3549.3,3549.2,2.81753634]
[1754291640538,0.1408,3549.3,3549.2,2.81753634]
[1754291640732,6.771,3549.6,3549.5,2.81729821]
[1754291640926,4.29,3549.6,3549.5,2.81729821]
[1754291641326,0.1408,3549.8,3549.7,2.81713947]
[1754291641560,5.0486,3549.8,3549.7,2.81713947]
[1754291642683,5.4844,3549.8,3549.7,2.81713947]
[1754291643368,4.4308,3549.8,3549.7,2.81713947]
[1754291644068,4.4308,3549.8,3549.7,3.38058324]
[1754291645185,4.8666,3549.8,3549.7,2.81713947]
[1754291645422,5.4844,3549.8,3549.7,2.81713947]
[1754291645746,4.29,3549.8,3549.7,2.81713947]
[1754291646984,5.3436,3549.8,3549.7,2.81713947]
[1754291648796,5.37881325,3549.8,3549.0,0.89478908]
[1754291648984,1.6036,3549.7,3549.4,2.81731175]
[1754291649183,4.839,3549.6,3549.5,2.81724173]
[1754291649372,4.839,3549.6,3548.9,2.95852719]
[1754291649373,5.8926,3549.6,3549.4,2.8173556]
[1754291649571,1.0536,3549.5,3549.0,2.81769512]
[1754291649776,5.3426,3549.4,3549.2,2.81748294]
[1754291649962,1.0536,3549.3,3549.2,2.81748294]
[1754291655332,4.4298,3549.4,3549.3,2.81745696]
[1754291655854,5.4834,3549.4,3549.3,2.81745696]
[1754291663064,0.55,3549.3,3548.8,0.002]
[1754291663340,0.55,3549.1,3549.0,2.81766234]
[1754291663642,1.7444,3549.1,3549.0,2.81766234]
[1754291666550,0.1408,3549.1,3549.0,2.81766234]
[1754291666715,1.1678,3549.6,3549.4,2.81733358]
[1754291666920,5.8916,3549.5,3549.4,2.81733358]
[1754291667232,6.0324,3549.5,3549.4,2.81733358]
[1754291667621,1.0536,3549.8,3549.6,2.81716783]
[1754291667953,1.6036,3549.7,3549.6,2.81716783]
[1754291668131,5.3416,3549.7,3549.6,2.81716783]
[1754291668332,5.8916,3549.7,3549.6,2.81716783]
[1754291668543,6.0324,3549.7,3549.6,2.81716783]
[1754291671240,1.7444,3549.7,3549.5,2.81726909]
[1754291671437,0.6908,3549.7,3549.6,2.81721884]
[1754291671772,4.9788,3549.7,3549.6,2.81721884]
[1754291672065,6.0999,3549.7,3549.6,2.81721884]
[1754291672640,5.5499,3549.7,3549.5,2.81727287]
[1754291672844,1.1211,3549.6,3549.5,2.81727287]
[1754291673253,4.4288,3549.7,3549.6,2.81721884]
[1754291673757,5.5499,3549.7,3549.6,2.81721884]
[1754291676956,5.5499,3549.7,3549.5,2.81728204]
[1754291677157,1.1211,3549.6,3549.5,2.81728204]
[1754291677583,5.4091,3549.6,3549.5,2.81728204]
[1754291677951,0.55,3549.5,3549.3,0.002]
[1754291678280,4.9788,3549.4,3549.3,0.002]
[1754291678478,0.6908,3549.4,3549.3,0.002]
[1754291678681,6.0999,3549.4,3549.3,0.002]
[1754291680896,1.8119,3549.4,3549.3,0.002]
[1754291681191,4.9788,3549.4,3549.3,2.81945696]
[1754291685470,0.4591,3549.8,3549.7,2.81713947]
[1754291685673,5.4091,3549.8,3549.7,2.81713947]
[1754291685886,0.1408,3549.8,3549.7,2.81713947]
[1754291686072,4.4288,3549.8,3549.7,2.81713947]
[1754291686277,5.5499,3549.8,3549.7,2.81713947]
[1754291686666,5.5499,3549.8,3549.3,0.1428]
[1754291686981,1.1211,3549.7,3549.6,2.81721884]
[1754291687513,1.2619,3549.7,3549.6,2.81721884]
[1754291688568,5.5499,3549.7,3549.6,2.81721884]
[1754291689171,4.4288,3549.7,3549.6,2.81721884]
[1754291689828,5.0908,3549.7,3549.6,2.81721884]
[1754291689999,5.5499,3549.7,3549.6,2.81721884]
[1754291690313,4.4288,3549.7,3549.6,2.81721884]
[1754291690518,4.4278,3549.7,3549.6,2.81721884]
[1754291690869,0.1408,3549.7,3549.6,2.81721884]
[1754291691103,4.4278,3549.7,3549.6,2.81721884]
[1754291691774,5.5489,3549.7,3549.6,2.81721884]
[1754291691975,1.2619,3549.7,3549.6,2.81721884]
[1754291692285,5.5489,3549.7,3549.6,2.81721884]
[1754291693305,5.5489,3549.7,3549.3,0.002]
[1754291693502,0.1408,3549.5,3549.4,2.81731958]
[1754291693706,4.4278,3549.5,3549.4,2.81731958]
[1754291694206,5.5489,3549.5,3549.3,0.002]
[1754291694380,0.03521721,3549.4,3549.3,0.002]
[1754291694580,1.1211,3549.4,3549.3,2.81945696]
[1754291695602,0.662,3549.4,3549.3,2.81945696]
[1754291695972,1.1211,3549.4,3549.3,2.81945696]
[1754291697714,1.6711,3549.4,3549.3,0.002]
[1754291698444,1.6711,3549.4,3549.3,2.81945696]
[1754291698776,1.6711,3549.4,3549.3,0.002]
[1754291699311,1.6711,3549.4,3549.3,2.81945696]
[1754291699514,1.6711,3549.4,3549.3,0.002]
[1754291700114,1.70631721,3549.4,3549.3,0.002]
[1754291700311,1.6711,3549.4,3549.3,0.002]
[1754291700612,1.6711,3549.4,3549.3,2.81945696]
[1754291700974,5.9581,3549.4,3549.3,2.81945696]
[1754291701207,1.6711,3549.4,3549.3,2.81945696]
[1754291701375,5.9581,3549.4,3549.3,0.002]
[1754291702454,1.6711,3549.4,3549.3,0.002]
[1754291702591,5.9581,3549.4,3549.3,0.002]
[1754291703623,6.56799,3549.4,3549.3,0.002]
[1754291704187,2.28099,3549.4,3549.3,0.002]
[1754291704394,5.9581,3549.4,3549.3,0.002]
[1754291705223,1.6711,3549.4,3549.3,0.002]
[1754291705419,5.9581,3549.4,3549.3,0.002]
[1754291706225,5.2961,3549.4,3549.3,0.002]
[1754291706423,0.55,3549.4,3549.3,2.81945696]
[1754291706601,4.837,3549.4,3549.3,2.81945696]
[1754291708328,0.1408,3549.5,3549.4,2.81737758]
[1754291708329,0.6908,3549.5,3549.4,2.81737758]
[1754291708526,4.9778,3549.5,3549.4,2.81737758]
[1754291709318,0.1408,3549.6,3549.4,0.48434849]
[1754291709517,0.445,3550.1,3549.9,2.81698076]
[1754291709825,5.385,3550.0,3549.9,2.81698076]
[1754291709996,5.5258,3550.0,3549.9,2.81698076]
[1754291710198,4.8718,3550.0,3549.8,2.81703757]
[1754291710397,0.001,3550.1,3549.8,2.81703757]
[1754291710398,5.385,3549.9,3549.8,2.81703757]
[1754291710635,5.5258,3549.9,3549.8,2.81703757]
[1754291711918,0.1408,3549.9,3549.8,2.81703757]
[1754291712123,4.4278,3549.9,3549.8,3.3804624]
[1754291712518,4.4278,3549.9,3549.8,2.81703757]
[1754291712926,5.5258,3549.9,3549.8,2.81703757]
[1754291715437,0.1408,3549.9,3549.8,2.81703757]
[1754291715640,4.4268,3549.9,3549.8,2.81703757]
[1754291717013,5.0808,3549.9,3549.8,2.81703757]
[1754291717741,0.7948,3549.9,3549.8,2.81703757]
[1754291717913,5.0808,3549.9,3549.8,2.81703757]
[1754291718122,5.5248,3549.9,3549.8,2.81703757]
[1754291719711,0.7948,3549.9,3549.8,2.81703757]
[1754291719912,4.4268,3549.9,3549.8,2.81703757]
[1754291720250,4.4278,3549.9,3549.8,2.81703757]
[1754291721342,5.0818,3549.9,3549.8,2.81703757]
[1754291721649,5.5258,3549.9,3549.8,2.81703757]
[1754291722608,1.2398,3549.9,3549.8,2.81703757]
[1754291722807,5.5258,3549.9,3549.8,2.81703757]
[1754291724144,0.1418,3549.9,3549.8,2.81703757]
[1754291724446,4.4278,3549.9,3549.8,2.81703757]
[1754291725116,0.1418,3549.9,3549.8,3.40891652]
[1754291725338,0.001,3549.9,3549.8,6.83431652]
[1754291726232,1e-08,3549.9,3549.8,6.83431652]
[1754291727240,0.001,3550.3,3550.2,2.81674271]
[1754291727441,1e-08,3550.3,3550.2,6.09841698]
[1754291727642,1e-08,3550.3,3550.2,6.52381698]
[1754291729253,1e-08,3550.3,3550.2,10.80881698]
[1754291729453,1e-08,3550.3,3550.2,6.23921698]
[1754291730351,1e-08,3550.3,3550.2,10.79621698]
[1754291732359,0.001,3550.7,3550.4,5.81658404]
[1754291732560,0.001,3550.7,3550.6,3.0]
[1754291732741,0.001,3550.7,3550.6,5.95722539]
[1754291733621,0.001,3550.7,3550.6,10.45131386]
[1754291733822,0.6394,3550.7,3550.6,10.45131386]
[1754291734152,1.0979,3550.7,3550.6,10.45131386]
[1754291734353,0.001,3550.7,3550.6,12.71423166]
[1754291735254,0.6394,3550.7,3550.6,12.71423166]
[1754291735627,0.6394,3550.7,3550.6,8.43023166]
[1754291735827,0.001,3550.7,3550.6,8.43023166]
[1754291737472,0.001,3550.7,3550.6,8.70223166]
[1754291738959,0.001,3550.7,3550.6,8.43023166]
[1754291742543,1.0979,3550.7,3550.6,8.43023166]